bitfinex/quotes_BTCUSD_20251010
["timestamp","ask_amount","ask_price","bid_price","bid_amount"]
[1760073301721,1.02434573,121230.0,121210.0,0.1652887]
[1760073304747,1.02434573,121230.0,121210.0,0.1814587]
[1760073304945,1.02434573,121230.0,121220.0,0.16498927]
[1760073306176,1.01663559,121230.0,121220.0,0.16498927]
[1760073306395,1.02434616,121230.0,121220.0,0.16498927]
[1760073307070,1.10434296,121230.0,121220.0,0.16498927]
[1760073309499,1.10434296,121230.0,121210.0,0.1652887]
[1760073310212,0.16498927,121220.0,121210.0,0.16529386]
[1760073310433,0.39766927,121220.0,121210.0,0.00029098]
[1760073310672,1.27851851,121220.0,121210.0,0.00029098]
[1760073310887,1.35851531,121220.0,121210.0,0.00029098]
[1760073311360,1.44435531,121220.0,121210.0,0.00029098]
[1760073311819,1.44435531,121220.0,121210.0,0.16529386]
[1760073312258,1.43664542,121220.0,121210.0,0.16529386]
[1760073312705,1.03812862,121220.0,121210.0,0.16529386]
[1760073312931,1.35664862,121220.0,121210.0,0.16529386]
[1760073313156,0.35541965,121220.0,121210.0,0.16529386]
[1760073313370,0.34,121220.0,121210.0,0.18146386]
[1760073313582,0.65852,121220.0,121210.0,0.18146386]
[1760073314001,0.65852,121220.0,121210.0,0.16529386]
[1760073314211,0.34,121220.0,121210.0,0.16529386]
[1760073314424,0.65852,121220.0,121210.0,0.16529386]
[1760073315826,0.65852,121220.0,121210.0,0.18146386]
[1760073316350,0.34,121220.0,121210.0,0.18146386]
[1760073316613,0.08584,121220.0,121210.0,0.2537092]
[1760073316828,0.69093117,121240.0,121220.0,0.16498494]
[1760073317054,0.31852,121230.0,121220.0,0.18115494]
[1760073317294,0.36822362,121240.0,121220.0,0.21533494]
[1760073317521,0.70656073,121240.0,121230.0,0.19915566]
[1760073317747,1.02508073,121240.0,121230.0,0.21532566]
[1760073317970,1.02559633,121240.0,121230.0,0.21532566]
[1760073318196,1.02659633,121240.0,121230.0,0.21532566]
[1760073318436,1.02759633,121240.0,121230.0,0.21532566]
[1760073318697,1.02659633,121240.0,121230.0,0.21532566]
[1760073319181,0.68315633,121240.0,121230.0,0.21532566]
[1760073319608,0.68315633,121240.0,121230.0,0.19257566]
[1760073320025,0.68315402,121240.0,121230.0,0.19257566]
[1760073321071,0.70793519,121240.0,121230.0,0.22219308]
[1760073322817,0.45047402,121240.0,121230.0,0.63317417]
[1760073323091,0.0005156,121240.0,121230.0,0.63317417]
[1760073323317,0.0863556,121240.0,121230.0,0.71629623]
[1760073323538,0.0863556,121240.0,121230.0,1.10452732]
[1760073323763,0.2331956,121240.0,121230.0,1.13773845]
[1760073323973,0.0005156,121240.0,121230.0,1.13773845]
[1760073324395,0.0049956,121240.0,121230.0,1.13773845]
[1760073324839,0.0005156,121240.0,121230.0,0.74950736]
[1760073325057,0.0816356,121240.0,121230.0,0.74950736]
[1760073327595,0.0005156,121240.0,121230.0,0.74950736]
[1760073327806,0.14196193,121240.0,121230.0,0.74950736]
[1760073328299,1.16256188,121270.0,121260.0,0.16493485]
[1760073328300,0.43097079,121270.0,121260.0,0.16493485]
[1760073328513,0.62497408,121270.0,121260.0,0.24827318]
[1760073328742,1.09904517,121270.0,121260.0,0.24827318]
[1760073328960,1.10059152,121270.0,121260.0,0.24827318]
[1760073329192,1.03439649,121270.0,121260.0,0.24827318]
[1760073329420,0.42746964,121270.0,121260.0,0.22552318]
[1760073329632,0.66014964,121270.0,121260.0,0.22552318]
[1760073330445,0.66114964,121270.0,121260.0,0.22552318]
[1760073331781,0.34262964,121270.0,121260.0,0.22552318]
[1760073332256,0.66114964,121270.0,121260.0,0.22552318]
[1760073332477,1.04938073,121270.0,121260.0,0.22552318]
[1760073332701,0.66214964,121270.0,121260.0,0.22552318]
[1760073333997,0.66214964,121270.0,121260.0,0.19253485]
[1760073334425,0.34362964,121270.0,121260.0,0.21691485]
[1760073334671,0.66210964,121270.0,121260.0,0.21691485]
[1760073334873,0.66210964,121270.0,121260.0,0.19253485]
[1760073339259,0.34362964,121270.0,121260.0,0.19253485]
[1760073339461,0.66206964,121270.0,121260.0,0.27068729]
[1760073340863,1.05030073,121270.0,121260.0,0.27068729]
[1760073342364,1.05030073,121270.0,121260.0,0.19253485]
[1760073342533,1.05030073,121270.0,121260.0,0.16493485]
[1760073343363,1.05798261,121270.0,121260.0,0.16493485]
[1760073343564,0.83467277,121270.0,121260.0,0.16493485]
[1760073343765,1.22290386,121270.0,121260.0,0.16493485]
[1760073343985,1.22290386,121270.0,121260.0,0.20150418]
[1760073346139,0.82534261,121270.0,121260.0,0.20150418]
[1760073346348,1.07336298,121270.0,121260.0,0.21812418]
[1760073346561,0.68513189,121270.0,121260.0,0.21812418]
[1760073346764,1.07336298,121270.0,121260.0,0.21812418]
[1760073349407,1.07337139,121270.0,121260.0,0.21812418]
[1760073353024,1.07339885,121270.0,121260.0,0.21812418]
[1760073353851,1.2383201,121270.0,121260.0,0.21812418]
[1760073354442,1.07339885,121270.0,121260.0,0.21812418]
[1760073354859,1.07339885,121270.0,121260.0,0.20150418]
[1760073355697,1.07339885,121270.0,121260.0,0.16493485]
[1760073356404,1.08991885,121270.0,121260.0,0.16493485]
[1760073356617,1.07339885,121270.0,121260.0,0.16493485]
[1760073357128,1.07339885,121270.0,121260.0,0.18155485]
[1760073358562,0.68516776,121270.0,121260.0,0.18155485]
[1760073358771,1.07339885,121270.0,121260.0,0.18155485]
[1760073361201,1.07344187,121270.0,121260.0,0.18155485]
[1760073361956,0.68521078,121270.0,121260.0,0.18155485]
[1760073362157,1.07344187,121270.0,121260.0,0.29318929]
[1760073362300,1.07344187,121270.0,121260.0,0.27049929]
[1760073364205,0.36677078,121270.0,121260.0,0.27049929]
[1760073364437,0.34517078,121270.0,121260.0,0.29326929]
[1760073364853,0.34517078,121270.0,121260.0,0.68150038]
[1760073365056,0.34517078,121270.0,121260.0,0.29326929]
[1760073365902,0.02677078,121270.0,121260.0,0.29326929]
[1760073366115,0.25937078,121270.0,121260.0,0.29326929]
[1760073366324,0.34517078,121270.0,121260.0,0.68150038]
[1760073366546,0.02677078,121270.0,121260.0,0.29326929]
[1760073366753,0.09713898,121270.0,121260.0,0.68150038]
[1760073366962,0.34517078,121270.0,121260.0,0.68150038]
[1760073367591,0.34517078,121270.0,121260.0,0.689606]
[1760073368014,0.34417078,121270.0,121260.0,0.68150038]
[1760073368642,0.11057078,121270.0,121260.0,0.76462244]
[1760073368843,0.34317078,121270.0,121260.0,0.76462244]
[1760073369290,0.32773898,121270.0,121260.0,0.76462244]
[1760073371194,0.32773898,121270.0,121260.0,0.77275523]
[1760073371399,0.32773898,121270.0,121260.0,0.76462244]
[1760073373324,0.32002964,121270.0,121260.0,0.77266056]
[1760073373733,0.08742964,121270.0,121260.0,0.77266056]
[1760073373925,0.32002964,121270.0,121260.0,0.77266056]
[1760073374137,0.32002964,121270.0,121260.0,0.38442947]
[1760073374346,0.32002964,121270.0,121260.0,0.77266056]
[1760073376321,0.32002964,121270.0,121260.0,0.38442947]
[1760073376568,0.32002964,121270.0,121260.0,0.77266056]
[1760073379718,0.32002964,121270.0,121260.0,0.37639135]
[1760073379922,0.20279482,121270.0,121260.0,0.76462244]
[1760073381277,0.20279482,121270.0,121260.0,0.77288114]
[1760073381735,0.20279482,121270.0,121260.0,0.37639135]
[1760073383597,0.20279482,121270.0,121260.0,0.38469945]
[1760073384014,0.0858,121270.0,121260.0,0.38469945]
[1760073384251,0.3184,121270.0,121260.0,0.90203041]
[1760073384469,0.5002,121280.0,121270.0,0.16492125]
[1760073384669,0.82630771,121280.0,121270.0,0.21838895]
[1760073384875,0.82630771,121280.0,121270.0,0.23456895]
[1760073385495,0.50790771,121280.0,121270.0,0.23456895]
[1760073385705,0.82626771,121280.0,121270.0,0.23456895]
[1760073385916,0.82726771,121280.0,121270.0,0.23456895]
[1760073387501,0.82826771,121280.0,121270.0,0.23456895]
[1760073389475,0.82826925,121280.0,121270.0,0.23456895]
[1760073390077,0.82878459,121280.0,121270.0,0.17738125]
[1760073390287,1.34611555,121280.0,121270.0,0.16492125]
[1760073392419,0.59622459,121280.0,121270.0,0.18110125]
[1760073392636,1.34611555,121280.0,121270.0,0.16492125]
[1760073393728,1.34611623,121280.0,121270.0,0.16492125]
[1760073394985,0.82878527,121280.0,121270.0,0.16492125]
[1760073395455,0.84421167,121280.0,121270.0,0.16492125]
[1760073396375,0.84421167,121280.0,121270.0,0.21739051]
[1760073396792,1.361548,121280.0,121270.0,0.21739051]
[1760073399043,1.36155112,121280.0,121270.0,0.21739051]
[1760073399913,0.84422016,121280.0,121270.0,0.21739051]
[1760073400832,0.82879027,121280.0,121270.0,0.21739051]
[1760073401075,0.83650519,121280.0,121270.0,0.21739051]
[1760073401566,0.84421304,121280.0,121270.0,0.21739051]
[1760073401831,0.83650042,121280.0,121270.0,0.21739051]
[1760073402516,0.82107534,121280.0,121270.0,0.21739051]
[1760073403215,0.98598299,121280.0,121270.0,0.21739051]
[1760073404316,0.75342299,121280.0,121270.0,0.21739051]
[1760073404524,0.82107534,121280.0,121270.0,0.21739051]
[1760073405973,0.82878534,121280.0,121270.0,0.21739051]
[1760073406194,0.84420535,121280.0,121270.0,0.21739051]
[1760073407901,0.84420415,121280.0,121270.0,0.21739051]
[1760073412079,1.0091118,121280.0,121270.0,0.21739051]
[1760073413136,1.00911093,121280.0,121270.0,0.21739051]
[1760073413762,1.29388189,121280.0,121260.0,0.16493076]
[1760073413973,0.51733096,121270.0,121260.0,0.16493076]
[1760073414188,1.50331395,121280.0,121260.0,0.16493076]
[1760073414447,0.68225221,121270.0,121250.0,0.1745735]
[1760073414634,0.23256,121260.0,121250.0,0.17465679]
[1760073414846,0.23256,121260.0,121250.0,0.2106377]
[1760073416335,0.23256,121260.0,121250.0,0.16640937]
[1760073416336,0.74989096,121260.0,121250.0,0.16640937]
[1760073417172,0.91482581,121260.0,121250.0,0.16640937]
[1760073419726,0.92303222,121260.0,121250.0,0.16640937]
[1760073419934,0.92303222,121260.0,121250.0,0.00146092]
[1760073419935,1.03817346,121260.0,121250.0,0.00146092]
[1760073420150,1.28613594,121260.0,121250.0,0.00146092]
[1760073420361,1.05357594,121260.0,121250.0,0.00146092]
[1760073420768,1.71521594,121260.0,121250.0,0.00146092]
[1760073420980,1.48265594,121260.0,121250.0,0.00146092]
[1760073421191,1.71521594,121260.0,121250.0,0.00146092]
[1760073421405,1.71521502,121260.0,121250.0,0.00146092]
[1760073421616,1.39685502,121260.0,121250.0,0.00146092]
[1760073421814,1.71521502,121260.0,121250.0,0.00146092]
[1760073422261,0.53624406,121260.0,121250.0,0.00146092]
[1760073422489,0.53624406,121260.0,121250.0,0.16640937]
[1760073422490,0.4489028,121260.0,121250.0,0.16640937]
[1760073422701,0.84639765,121260.0,121250.0,0.16640937]
[1760073422909,0.84639765,121260.0,121250.0,0.20080141]
[1760073423352,0.83099517,121260.0,121250.0,0.20080141]
[1760073423554,0.83099517,121260.0,121250.0,0.03585296]
[1760073423758,0.82329485,121260.0,121250.0,0.03585296]
[1760073423971,0.82329485,121260.0,121250.0,0.00146092]
[1760073425633,0.50493485,121260.0,121250.0,0.16640937]
[1760073425842,0.82329485,121260.0,121250.0,0.16640937]
[1760073426273,0.73749485,121260.0,121250.0,0.16640937]
[1760073426487,0.82329485,121260.0,121250.0,0.16640937]
[1760073427314,0.73749485,121260.0,121250.0,0.16640937]
[1760073427518,0.82329485,121260.0,121250.0,0.16640937]
[1760073429647,0.34,121260.0,121250.0,0.76979237]
[1760073429861,0.4258,121260.0,121250.0,0.76979237]
[1760073430113,0.00297824,121270.0,121260.0,0.16493485]
[1760073430324,0.66137824,121270.0,121260.0,0.16493485]
[1760073430586,0.66137824,121270.0,121260.0,0.24493165]
[1760073430794,0.59072125,121270.0,121250.0,0.21214141]
[1760073431005,1.11574082,121270.0,121250.0,0.16640937]
[1760073431211,0.2326,121260.0,121250.0,0.16640937]
[1760073432263,0.91486581,121260.0,121250.0,0.00146092]
[1760073432473,0.39753485,121260.0,121250.0,0.16640937]
[1760073433779,1.11733198,121270.0,121250.0,0.16640937]
[1760073433780,0.60000102,121270.0,121250.0,0.16640937]
[1760073433994,0.2326,121260.0,121250.0,0.16640937]
[1760073434627,1.37385198,121270.0,121250.0,0.20320141]
[1760073434836,0.3184,121260.0,121250.0,0.20320141]
[1760073435519,1.03153198,121270.0,121250.0,0.20320141]
[1760073435725,0.3184,121260.0,121250.0,0.20320141]
[1760073438626,1.03053198,121270.0,121250.0,0.20320141]
[1760073438831,1.03053198,121270.0,121260.0,0.16493485]
[1760073438832,1.22372555,121270.0,121260.0,0.16493485]
[1760073438989,0.68479459,121270.0,121260.0,0.21895248]
[1760073439178,0.66172,121270.0,121260.0,0.18057485]
[1760073440613,0.66272,121270.0,121260.0,0.18057485]
[1760073441172,0.001,121270.0,121260.0,0.18057485]
[1760073441321,0.31944,121270.0,121260.0,0.19191485]
[1760073441546,0.3435205,121270.0,121260.0,0.19191485]
[1760073441935,0.3425205,121270.0,121260.0,0.19191485]
[1760073442135,0.3435205,121270.0,121260.0,0.19191485]
[1760073443134,0.50844175,121270.0,121260.0,0.17627485]
[1760073443546,0.0250805,121270.0,121260.0,0.17627485]
[1760073443760,0.32044,121270.0,121260.0,0.19191485]
[1760073443958,0.3435205,121270.0,121260.0,0.19191485]
[1760073444421,0.3435205,121270.0,121260.0,0.57996475]
[1760073444659,0.0878,121270.0,121260.0,1.07269145]
[1760073445154,0.32044,121270.0,121260.0,1.07269145]
[1760073445357,0.002,121270.0,121260.0,1.07269145]
[1760073445565,0.0878,121270.0,121260.0,1.07269145]
[1760073445763,0.32044,121270.0,121260.0,1.07269145]
[1760073446882,0.002,121270.0,121260.0,1.07269145]
[1760073447192,0.32044,121270.0,121260.0,1.07269145]
[1760073447623,0.002,121270.0,121260.0,1.15581351]
[1760073447850,0.0878,121270.0,121260.0,1.54386341]
[1760073448030,0.32044,121270.0,121260.0,1.15581351]
[1760073448225,0.0878,121270.0,121260.0,1.56863492]
[1760073448432,0.32048,121270.0,121260.0,1.56863492]
[1760073449065,0.31948,121270.0,121260.0,1.56863492]
[1760073449836,0.31848,121270.0,121260.0,1.56863492]
[1760073450261,0.50071534,121280.0,121270.0,0.16492125]
[1760073450508,0.31919534,121280.0,121270.0,1.04006389]
[1760073450775,0.31919534,121280.0,121270.0,1.02357177]
[1760073451000,0.31919534,121280.0,121270.0,1.04834162]
[1760073451907,0.32019534,121280.0,121270.0,1.04834162]
[1760073452802,0.32119534,121280.0,121270.0,1.04834162]
[1760073453184,0.32119534,121280.0,121270.0,1.13146368]
[1760073453754,0.00271534,121280.0,121270.0,1.13146368]
[1760073453948,0.24083534,121280.0,121270.0,1.13146368]
[1760073454349,0.24083534,121280.0,121270.0,1.13952182]
[1760073454552,0.24083534,121280.0,121270.0,0.75147192]
[1760073458061,0.15381779,121280.0,121270.0,0.75147192]
[1760073462297,0.0002,121290.0,121280.0,0.16490765]
[1760073462482,0.3186,121290.0,121280.0,0.61757035]
[1760073462717,0.3186,121290.0,121280.0,0.64129959]
[1760073464593,0.3196,121290.0,121280.0,0.64129959]
[1760073464793,0.3206,121290.0,121280.0,0.64129959]
[1760073466662,0.3206,121290.0,121280.0,0.25324969]
[1760073466803,0.3206,121290.0,121280.0,0.64129959]
[1760073467897,0.3210753,121290.0,121280.0,0.22918969]
[1760073468050,0.3210753,121290.0,121280.0,0.64204959]
[1760073470209,0.0885153,121290.0,121280.0,0.64204959]
[1760073470416,0.3210753,121290.0,121280.0,0.64204959]
[1760073471449,0.32877489,121290.0,121280.0,0.64204959]
[1760073472848,0.09621489,121290.0,121280.0,0.64204959]
[1760073473049,0.32877489,121290.0,121280.0,0.64204959]
[1760073474018,0.01041489,121290.0,121280.0,0.64204959]
[1760073474235,0.3210753,121290.0,121280.0,0.64204959]
[1760073474442,0.09621489,121290.0,121280.0,0.64204959]
[1760073474659,0.32877489,121290.0,121280.0,0.64204959]
[1760073474903,0.34318601,121290.0,121280.0,0.64204959]
[1760073475372,0.34419203,121290.0,121280.0,0.64204959]
[1760073475785,0.34319203,121290.0,121280.0,0.64204959]
[1760073476115,0.73124193,121290.0,121280.0,0.25399969]
[1760073477283,0.49868193,121290.0,121280.0,0.25399969]
[1760073477475,0.73224193,121290.0,121280.0,0.25399969]
[1760073480043,0.49968193,121290.0,121280.0,0.25399969]
[1760073480310,0.73224193,121290.0,121280.0,0.25399969]
[1760073481174,0.73225805,121290.0,121280.0,0.25399969]
[1760073481383,0.02584815,121290.0,121280.0,0.25399969]
[1760073481586,0.3210353,121290.0,121280.0,0.64204959]
[1760073481796,0.34416815,121290.0,121280.0,0.64204959]
[1760073481941,0.32874091,121290.0,121280.0,0.25399969]
[1760073482148,0.32874091,121290.0,121280.0,0.27876821]
[1760073483242,0.3210353,121290.0,121280.0,0.66681811]
[1760073483557,0.3210353,121290.0,121280.0,0.27876821]
[1760073485244,0.3210353,121290.0,121280.0,0.66681811]
[1760073485493,0.0027153,121290.0,121280.0,0.66681811]
[1760073485716,0.3210353,121290.0,121280.0,0.66681811]
[1760073486607,0.2352353,121290.0,121280.0,0.66681811]
[1760073486793,0.3210353,121290.0,121280.0,0.66681811]
[1760073489570,0.3210353,121290.0,121280.0,0.27876821]
[1760073491528,0.0885153,121290.0,121280.0,0.27876821]
[1760073491735,0.3210353,121290.0,121280.0,0.25395821]
[1760073492399,0.7090852,121290.0,121280.0,0.25395821]
[1760073492614,0.7090852,121290.0,121280.0,0.22918969]
[1760073493873,0.4765652,121290.0,121280.0,0.22918969]
[1760073494195,0.7090852,121290.0,121280.0,0.22918969]
[1760073494917,0.4765652,121290.0,121280.0,0.22918969]
[1760073495120,0.7090852,121290.0,121280.0,0.22918969]
[1760073496670,0.7090852,121290.0,121280.0,0.25374969]
[1760073497209,0.3210353,121290.0,121280.0,0.25374969]
[1760073497391,0.3210353,121290.0,121280.0,0.64179959]
[1760073497952,0.3210353,121290.0,121280.0,0.61723959]
[1760073498366,0.3210353,121290.0,121280.0,0.64179959]
[1760073499413,0.3210353,121290.0,121280.0,0.22918969]
[1760073499614,0.7090852,121290.0,121280.0,0.16490765]
[1760073500054,0.88169554,121290.0,121280.0,0.16490765]
[1760073501440,0.71680149,121290.0,121280.0,0.16490765]
[1760073501648,0.71680149,121290.0,121280.0,0.21123163]
[1760073503586,0.32875159,121290.0,121280.0,0.21123163]
[1760073504132,0.32875233,121290.0,121280.0,0.21123163]
[1760073506256,0.09623233,121290.0,121280.0,0.21123163]
[1760073506457,0.32875233,121290.0,121280.0,0.21123163]
[1760073507460,0.34419122,121290.0,121280.0,0.21123163]
[1760073510264,0.3441966,121290.0,121280.0,0.21123163]
[1760073510675,0.50909065,121290.0,121280.0,0.21123163]
[1760073515074,0.3441966,121290.0,121280.0,0.21123163]
[1760073516381,0.50909065,121290.0,121280.0,0.21123163]
[1760073521716,0.50909065,121290.0,121280.0,0.72851033]
[1760073522901,0.50909065,121290.0,121280.0,0.21123163]
[1760073528043,0.27657065,121290.0,121280.0,0.04632398]
[1760073528257,0.27657065,121290.0,121270.0,0.80427087]
[1760073528464,0.50909065,121290.0,121270.0,0.19580363]
[1760073528809,0.23252,121280.0,121270.0,0.19580363]
[1760073529196,0.23252,121280.0,121270.0,0.21158363]
[1760073529954,0.23252,121280.0,121270.0,0.72886233]
[1760073531003,0.0027153,121290.0,121280.0,0.16490765]
[1760073531215,0.0885153,121290.0,121280.0,0.81368315]
[1760073531423,0.01044432,121290.0,121280.0,0.81368315]
[1760073531639,0.3210353,121290.0,121280.0,0.81368315]
[1760073531854,0.32876432,121290.0,121280.0,0.81368315]
[1760073532733,0.32776432,121290.0,121280.0,0.81368315]
[1760073533078,0.34322413,121290.0,121280.0,0.81368315]
[1760073533902,0.34422413,121290.0,121280.0,0.81368315]
[1760073534109,0.34422413,121290.0,121280.0,0.27304445]
[1760073534313,0.34422413,121290.0,121280.0,0.79032315]
[1760073534515,0.02590413,121290.0,121280.0,0.79032315]
[1760073534724,0.3210353,121290.0,121280.0,0.79032315]
[1760073534942,0.34422413,121290.0,121280.0,0.79032315]
[1760073535276,0.34322413,121290.0,121280.0,0.79032315]
[1760073535491,0.02490413,121290.0,121280.0,0.79032315]
[1760073535730,0.3200353,121290.0,121280.0,0.79032315]
[1760073535946,0.32776432,121290.0,121280.0,0.79032315]
[1760073536815,0.32876432,121290.0,121280.0,0.79032315]
[1760073538786,0.32776432,121290.0,121280.0,0.79032315]
[1760073539003,0.32776463,121290.0,121280.0,0.79032315]
[1760073539249,0.32876463,121290.0,121280.0,0.79032315]
[1760073539981,0.34422277,121290.0,121280.0,0.79032315]
[1760073540402,0.11170253,121290.0,121280.0,0.24490445]
[1760073540605,0.34422253,121290.0,121280.0,0.24490445]
[1760073540787,0.11170253,121290.0,121280.0,0.24490445]
[1760073541086,0.34422253,121290.0,121280.0,0.24490445]
[1760073541704,0.34422253,121290.0,121280.0,0.16490765]
[1760073545702,0.34422253,121290.0,121280.0,0.68218635]
[1760073547024,0.3442228,121290.0,121280.0,0.68218635]
[1760073550111,0.50911685,121290.0,121270.0,0.74880233]
[1760073550316,0.23252,121280.0,121270.0,0.72544233]
[1760073550519,0.25340935,121290.0,121280.0,0.16490765]
[1760073550731,0.50911668,121290.0,121280.0,0.24490445]
[1760073551164,0.50811668,121290.0,121280.0,0.24490445]
[1760073551376,0.25742263,121290.0,121280.0,0.24490445]
[1760073551591,0.34322263,121290.0,121280.0,0.24490445]
[1760073551977,0.34322263,121290.0,121280.0,0.16490765]
[1760073552223,0.33549352,121290.0,121280.0,0.16490765]
[1760073552463,0.34322167,121290.0,121280.0,0.16490765]
[1760073552699,0.34222167,121290.0,121280.0,0.16490765]
[1760073552924,0.34322167,121290.0,121280.0,0.16490765]
[1760073553109,0.34422167,121290.0,121280.0,0.16490765]
[1760073553332,0.34322167,121290.0,121280.0,0.16490765]
[1760073553551,0.34222167,121290.0,121280.0,0.16490765]
[1760073553763,0.34322167,121290.0,121280.0,0.16490765]
[1760073553991,0.34422167,121290.0,121280.0,0.16490765]
[1760073554662,0.50911572,121290.0,121280.0,0.16490765]
[1760073556588,0.50911309,121290.0,121280.0,0.16490765]
[1760073558020,0.27659056,121290.0,121280.0,0.16490765]
[1760073558250,0.50911056,121290.0,121280.0,0.16490765]
[1760073558493,0.50911056,121290.0,121280.0,0.76218315]
[1760073558494,0.34421651,121290.0,121280.0,0.76218315]
[1760073559188,0.25841651,121290.0,121280.0,0.76218315]
[1760073559403,0.34421651,121290.0,121280.0,0.77809315]
[1760073559819,0.36898685,121290.0,121280.0,0.24490445]
[1760073560040,0.36898685,121290.0,121280.0,0.68218635]
[1760073560246,0.05066685,121290.0,121280.0,0.69809635]
[1760073560457,0.36898685,121290.0,121280.0,0.71033635]
[1760073560660,0.28318685,121290.0,121280.0,0.71033635]
[1760073560869,0.36898685,121290.0,121280.0,0.71033635]
[1760073561079,0.36898685,121290.0,121280.0,0.79033315]
[1760073561300,0.26773355,121290.0,121280.0,0.79033315]
[1760073561512,0.35353355,121290.0,121280.0,0.79033315]
[1760073562117,0.36898906,121290.0,121280.0,0.79033315]
[1760073565430,0.05066906,121290.0,121280.0,0.79033315]
[1760073565616,0.34580564,121290.0,121280.0,1.04878729]
[1760073565914,0.36898906,121290.0,121280.0,1.04878729]
[1760073568236,0.36894906,121290.0,121280.0,1.04878729]
[1760073571656,0.53384311,121290.0,121280.0,0.16490765]
[1760073571866,0.53384311,121290.0,121280.0,0.55277407]
[1760073572090,0.53384311,121290.0,121280.0,0.38786642]
[1760073572248,0.53384311,121290.0,121270.0,0.58367005]
[1760073572453,0.53384311,121290.0,121280.0,0.38786642]
[1760073572653,0.53384311,121290.0,121270.0,0.19580363]
[1760073572859,0.53384311,121290.0,121280.0,0.38786642]
[1760073573061,0.53384311,121290.0,121270.0,0.58367005]
[1760073573467,0.53384311,121290.0,121270.0,0.19580363]
[1760073573680,0.92170953,121290.0,121270.0,0.58367005]
[1760073574106,0.92070953,121290.0,121270.0,0.58367005]
[1760073574343,0.91970953,121290.0,121270.0,0.58367005]
[1760073574549,0.92070953,121290.0,121270.0,0.58367005]
[1760073574771,0.92170953,121290.0,121270.0,0.58367005]
[1760073574915,0.53384311,121290.0,121270.0,0.58367005]
[1760073577819,0.30136311,121290.0,121270.0,0.58367005]
[1760073578026,0.23248,121280.0,121270.0,0.58367005]
[1760073580361,0.23248,121280.0,121270.0,0.59965005]
[1760073580575,0.52548564,121290.0,121280.0,0.16490765]
[1760073580786,0.86695679,121290.0,121280.0,0.64875087]
[1760073581026,0.86695679,121290.0,121280.0,0.66025087]
[1760073581745,0.86695679,121290.0,121280.0,0.27238445]
[1760073581960,0.86695679,121290.0,121280.0,0.66025087]
[1760073582184,0.86795679,121290.0,121280.0,0.66025087]
[1760073582850,0.86713225,121290.0,121280.0,0.66025087]
[1760073583424,1.0320263,121290.0,121280.0,0.63277087]
[1760073583684,1.0320263,121290.0,121280.0,0.38786642]
[1760073583887,1.0330263,121290.0,121280.0,0.38786642]
[1760073587839,0.8005463,121290.0,121280.0,0.38786642]
[1760073588057,1.0330263,121290.0,121280.0,0.38786642]
[1760073588481,0.85238123,121290.0,121280.0,0.38786642]
[1760073589290,0.5083652,121290.0,121280.0,0.44738343]
[1760073591186,0.2758852,121290.0,121280.0,0.44738343]
[1760073591386,0.1900852,121290.0,121280.0,0.61229108]
[1760073591594,0.5083652,121290.0,121280.0,0.61229108]
[1760073592012,0.5083652,121290.0,121280.0,0.55277407]
[1760073593130,0.5083652,121290.0,121280.0,0.38786642]
[1760073594814,0.53313605,121290.0,121280.0,0.38786642]
[1760073599452,0.5331274,121290.0,121280.0,0.38786642]
[1760073601764,0.4473274,121290.0,121280.0,0.38786642]
[1760073601975,0.5331274,121290.0,121280.0,0.38786642]
[1760073602416,0.36823335,121290.0,121280.0,0.62807108]
[1760073602634,0.36823335,121290.0,121280.0,1.0273975]
[1760073602837,0.36823335,121290.0,121280.0,0.63953108]
[1760073606281,0.36823335,121290.0,121280.0,1.0273975]
[1760073606500,0.0251825,121290.0,121280.0,1.0273975]
[1760073606708,0.32028,121290.0,121280.0,1.0515075]
[1760073606942,0.3280075,121290.0,121280.0,1.0515075]
[1760073607571,0.3280075,121290.0,121280.0,0.27577466]
[1760073607773,0.11098216,121290.0,121280.0,1.0515075]
[1760073607984,0.34346216,121290.0,121280.0,1.0515075]
[1760073608424,0.3280075,121290.0,121280.0,1.0515075]
[1760073610560,0.0955275,121290.0,121280.0,1.0515075]
[1760073610802,0.3280075,121290.0,121280.0,1.0515075]
[1760073611031,0.3280075,121290.0,121280.0,1.0273975]
[1760073611494,0.3280075,121290.0,121280.0,1.0515075]
[1760073613948,0.3280056,121290.0,121280.0,1.0515075]
[1760073615030,0.3280056,121290.0,121280.0,1.0273975]
[1760073615246,0.3280056,121290.0,121280.0,1.0515075]
[1760073619966,0.3280056,121290.0,121280.0,1.0273975]
[1760073621250,0.3280056,121290.0,121280.0,1.0515075]
[1760073621716,0.32800224,121290.0,121280.0,1.0515075]
[1760073622796,0.32800224,121290.0,121280.0,1.0273975]
[1760073624788,0.32800224,121290.0,121280.0,0.63953108]
[1760073625011,0.49289629,121290.0,121280.0,0.55277407]
[1760073625676,0.49289629,121290.0,121280.0,0.16490765]
[1760073627346,0.32800224,121290.0,121280.0,0.16490765]
[1760073627769,0.32800224,121290.0,121280.0,0.18140765]
[1760073627975,0.32800224,121290.0,121280.0,0.16490765]
[1760073628195,0.32800224,121290.0,121280.0,0.24490445]
[1760073630365,0.32800224,121290.0,121280.0,0.16490765]
[1760073631991,0.49289629,121290.0,121280.0,0.16490765]
[1760073632914,0.49289629,121290.0,121280.0,0.18140765]
[1760073633142,0.26041629,121290.0,121280.0,0.18140765]
[1760073633353,0.49289629,121290.0,121280.0,0.18140765]
[1760073633566,0.49289629,121290.0,121280.0,0.26140445]
[1760073633984,0.32800224,121290.0,121280.0,0.7621446]
[1760073634192,0.32800224,121290.0,121280.0,0.7784746]
[1760073634426,0.32800224,121290.0,121280.0,0.26123445]
[1760073634641,0.32800224,121290.0,121280.0,0.7784746]
[1760073634845,0.32800224,121290.0,121280.0,0.7909246]
[1760073637002,0.3280087,121290.0,121280.0,0.7109278]
[1760073643073,0.0955287,121290.0,121280.0,0.19368765]
[1760073643277,0.3279687,121290.0,121280.0,0.19368765]
[1760073649984,0.3279687,121290.0,121280.0,0.6821478]
[1760073650246,0.3279687,121290.0,121280.0,0.18101765]
[1760073652357,0.0097287,121290.0,121280.0,0.19235765]
[1760073652563,0.32024,121290.0,121280.0,0.29537445]
[1760073652770,0.3279687,121290.0,121280.0,0.8126146]
[1760073653584,0.3279687,121290.0,121280.0,0.7895946]
[1760073654566,0.0097287,121290.0,121280.0,0.8126146]
[1760073654803,0.0878,121290.0,121280.0,0.8126146]
[1760073655059,0.0097287,121290.0,121280.0,0.8126146]
[1760073655248,0.0878,121290.0,121280.0,0.8126146]
[1760073655453,0.3279687,121290.0,121280.0,0.8126146]
[1760073656139,0.0955287,121290.0,121280.0,0.8126146]
[1760073656361,0.0878,121290.0,121280.0,1.41297681]
[1760073656603,0.32024,121290.0,121280.0,1.41297681]
[1760073656820,0.002,121290.0,121280.0,1.43774292]
[1760073657034,0.23444,121290.0,121280.0,1.43774292]
[1760073657691,0.23344,121290.0,121280.0,1.43774292]
[1760073657987,0.001,121290.0,121280.0,1.43774292]
[1760073658439,0.0692,121290.0,121280.0,1.43774292]
[1760073659090,0.0682,121290.0,121280.0,1.43774292]
[1760073659526,0.12316,121300.0,121290.0,0.16489405]
[1760073659752,0.12316,121300.0,121290.0,0.8690077]